[Event "*** Titled Tuesday Blitz"]
[Site "Chess.com"]
[Date "2021.02.02"]
[Round "8"]
[White "KononenkoD"]
[Black "davigator"]
[Result "1-0"]
[WhiteElo "2534"]
[BlackElo "2337"]
[TimeControl "180+1"]
[EndTime "11:30:18 PST"]
[Termination "KononenkoD won by resignation"]

1. d4 {[%clk 0:03:00.9]} 1... Nf6 {[%clk 0:02:56.5]} 2. c4 {[%clk 0:02:56.8]}
2... e6 {[%clk 0:02:55.6]} 3. g3 {[%clk 0:02:57]} 3... Bb4+ {[%clk 0:02:51.9]}
4. Bd2 {[%clk 0:02:56.5]} 4... a5 {[%clk 0:02:52.3]} 5. Bg2 {[%clk 0:02:55.9]}
5... d5 {[%clk 0:02:49.7]} 6. a3 {[%clk 0:02:48.3]} 6... Be7 {[%clk 0:02:48.4]}
7. Nf3 {[%clk 0:02:41.1]} 7... O-O {[%clk 0:02:47.5]} 8. O-O {[%clk 0:02:39.3]}
8... b6 {[%clk 0:02:46.3]} 9. Qc2 {[%clk 0:02:37.8]} 9... Ba6 {[%clk 0:02:44.8]}
10. b3 {[%clk 0:02:36.4]} 10... c6 {[%clk 0:02:44.3]} 11. Rd1 {[%clk 0:02:35.4]}
11... Nbd7 {[%clk 0:02:43.7]} 12. Bf4 {[%clk 0:02:35.3]} 12... Rc8 {[%clk
0:02:42.8]} 13. Nc3 {[%clk 0:02:13.1]} 13... dxc4 {[%clk 0:02:38.5]} 14. b4
{[%clk 0:02:13.3]} 14... Nd5 {[%clk 0:02:11.9]} 15. e4 {[%clk 0:02:13.1]} 15...
Nxf4 {[%clk 0:02:08.4]} 16. gxf4 {[%clk 0:02:12.8]} 16... axb4 {[%clk
0:02:04.8]} 17. axb4 {[%clk 0:02:12.4]} 17... Bb7 {[%clk 0:02:05.2]} 18. Ra7
{[%clk 0:02:00.1]} 18... Rb8 {[%clk 0:02:01.7]} 19. d5 {[%clk 0:01:36.2]} 19...
exd5 {[%clk 0:01:36.7]} 20. exd5 {[%clk 0:01:36]} 20... c5 {[%clk 0:01:22.8]}
21. b5 {[%clk 0:01:27]} 21... Bf6 {[%clk 0:01:00]} 22. Ne4 {[%clk 0:01:25.7]}
22... h6 {[%clk 0:00:57.9]} 23. Nd6 {[%clk 0:01:12.5]} 23... Bc8 {[%clk
0:00:57.5]} 24. Nxc4 {[%clk 0:00:59.1]} 24... Rb7 {[%clk 0:00:54.6]} 25. Ra8
{[%clk 0:00:55.4]} 25... Rb8 {[%clk 0:00:53.3]} 26. Rxb8 {[%clk 0:00:43.6]}
26... Nxb8 {[%clk 0:00:52.9]} 27. Nfe5 {[%clk 0:00:44.2]} 27... Bd7 {[%clk
0:00:49.8]} 28. Nc6 {[%clk 0:00:40.7]} 28... Qc8 {[%clk 0:00:49.5]} 29. Nxb6
{[%clk 0:00:37.6]} 29... Qc7 {[%clk 0:00:48.4]} 30. Qxc5 {[%clk 0:00:30.3]}
30... Bxc6 {[%clk 0:00:44.6]} 31. bxc6 {[%clk 0:00:24.8]} 31... Qxf4 {[%clk
0:00:41.1]} 32. c7 {[%clk 0:00:21.9]} 32... Na6 {[%clk 0:00:34.9]} 33. Qxf8+
{[%clk 0:00:17.9]} 33... Kxf8 {[%clk 0:00:33.2]} 34. c8=Q+ {[%clk 0:00:18.8]}
34... Ke7 {[%clk 0:00:30.4]} 35. Qd7+ {[%clk 0:00:19.4]} 35... Kf8 {[%clk
0:00:30.7]} 36. Qc8+ {[%clk 0:00:19.1]} 36... Ke7 {[%clk 0:00:30.9]} 37. Re1+
{[%clk 0:00:18.7]} 37... Be5 {[%clk 0:00:30.4]} 38. Qd7+ {[%clk 0:00:17.3]}
38... Kf6 {[%clk 0:00:30.6]} 39. Qc6+ {[%clk 0:00:16.5]} 39... Kg5 {[%clk
0:00:26.8]} 40. Qc1 {[%clk 0:00:14.4]} 40... Nc5 {[%clk 0:00:24.3]} 41. Rxe5+
{[%clk 0:00:12.5]} 41... Kg4 {[%clk 0:00:23.2]} 42. Qxf4+ {[%clk 0:00:13.4]}
42... Kxf4 {[%clk 0:00:23.3]} 43. Re7 {[%clk 0:00:13.1]} 43... f5 {[%clk
0:00:22.6]} 44. d6 {[%clk 0:00:13.4]} 44... g5 {[%clk 0:00:21.4]} 45. d7 {[%clk
0:00:14.3]} 45... Nxd7 {[%clk 0:00:21.5]} 46. Rxd7 {[%clk 0:00:14.9]} 46... g4
{[%clk 0:00:22.1]} 47. Nd5+ {[%clk 0:00:15.4]} 47... Ke5 {[%clk 0:00:22.1]} 48.
Ne3 {[%clk 0:00:15.9]} 48... h5 {[%clk 0:00:21]} 49. Rh7 {[%clk 0:00:15.9]}
49... f4 {[%clk 0:00:20.5]} 50. Rxh5+ {[%clk 0:00:16.8]} 50... Kf6 {[%clk
0:00:19.3]} 51. Nxg4+ {[%clk 0:00:17.7]} 51... Kg6 {[%clk 0:00:20]} 52. Rd5
{[%clk 0:00:17.3]} 52... f3 {[%clk 0:00:18.4]} 53. Bxf3 {[%clk 0:00:17.6]} 1-0

[Event "*** Titled Tuesday Blitz"]
[Site "Chess.com"]
[Date "2021.02.02"]
[Round "8"]
[White "Ladislav1969"]
[Black "eldur16"]
[Result "1/2-1/2"]
[WhiteElo "2339"]
[BlackElo "2520"]
[TimeControl "180+1"]
[EndTime "11:30:19 PST"]
[Termination "Game drawn by repetition"]

1. e4 {[%clk 0:03:00.9]} 1... Nf6 {[%clk 0:02:59.3]} 2. e5 {[%clk 0:03:00.5]}
2... Nd5 {[%clk 0:02:59.5]} 3. d4 {[%clk 0:03:01.4]} 3... d6 {[%clk 0:02:59.6]}
4. exd6 {[%clk 0:03:02.3]} 4... cxd6 {[%clk 0:02:59.1]} 5. c4 {[%clk 0:03:03.2]}
5... Nb6 {[%clk 0:02:58.8]} 6. Nc3 {[%clk 0:03:03.4]} 6... g6 {[%clk 0:02:58.8]}
7. Be2 {[%clk 0:03:00.1]} 7... Bg7 {[%clk 0:02:58.5]} 8. Nf3 {[%clk 0:02:58.3]}
8... O-O {[%clk 0:02:58.4]} 9. O-O {[%clk 0:02:56.7]} 9... e5 {[%clk 0:02:58.4]}
10. dxe5 {[%clk 0:02:54.2]} 10... dxe5 {[%clk 0:02:57.9]} 11. Bg5 {[%clk
0:02:49.3]} 11... f6 {[%clk 0:02:50.4]} 12. Be3 {[%clk 0:02:46.7]} 12... Be6
{[%clk 0:02:46.5]} 13. b3 {[%clk 0:02:17.8]} 13... Nc6 {[%clk 0:02:42.8]} 14.
Ne4 {[%clk 0:02:03]} 14... Qxd1 {[%clk 0:02:20.3]} 15. Rfxd1 {[%clk 0:02:01.5]}
15... Rad8 {[%clk 0:02:20.1]} 16. Nc5 {[%clk 0:01:34]} 16... Bc8 {[%clk
0:02:18.3]} 17. a4 {[%clk 0:01:29.5]} 17... f5 {[%clk 0:02:04.8]} 18. a5 {[%clk
0:01:29.5]} 18... Na8 {[%clk 0:01:58.4]} 19. Ng5 {[%clk 0:01:28.5]} 19... Nc7
{[%clk 0:01:55.4]} 20. Rxd8 {[%clk 0:00:58.5]} 20... Rxd8 {[%clk 0:01:54.3]} 21.
a6 {[%clk 0:00:54.5]} 21... bxa6 {[%clk 0:01:51]} 22. Rd1 {[%clk 0:00:45.5]}
22... Rxd1+ {[%clk 0:01:46.3]} 23. Bxd1 {[%clk 0:00:45.5]} 23... h6 {[%clk
0:01:40.3]} 24. Nf3 {[%clk 0:00:45.2]} 24... g5 {[%clk 0:01:29.9]} 25. Bd2
{[%clk 0:00:38.5]} 25... e4 {[%clk 0:01:28]} 26. Ne1 {[%clk 0:00:36.3]} 26...
Bf8 {[%clk 0:01:19.9]} 27. Na4 {[%clk 0:00:30.6]} 27... Ne6 {[%clk 0:01:06.2]}
28. Nc2 {[%clk 0:00:30.3]} 28... a5 {[%clk 0:00:55.3]} 29. f3 {[%clk 0:00:30.2]}
29... Ned4 {[%clk 0:00:49.7]} 30. Nxd4 {[%clk 0:00:25.4]} 30... Nxd4 {[%clk
0:00:46.3]} 31. fxe4 {[%clk 0:00:25.6]} 31... fxe4 {[%clk 0:00:45.6]} 32. Be3
{[%clk 0:00:25.6]} 32... Bg7 {[%clk 0:00:39.9]} 33. Nc5 {[%clk 0:00:21]} 33...
Nf5 {[%clk 0:00:31.6]} 34. Kf2 {[%clk 0:00:18.1]} 34... Nxe3 {[%clk 0:00:20.1]}
35. Kxe3 {[%clk 0:00:18]} 35... Kf7 {[%clk 0:00:17.6]} 36. Nxe4 {[%clk
0:00:17.3]} 36... Ke7 {[%clk 0:00:17.6]} 37. Nc5 {[%clk 0:00:16]} 37... Kd6
{[%clk 0:00:17.1]} 38. Ne4+ {[%clk 0:00:16]} 38... Ke5 {[%clk 0:00:17.1]} 39.
Nc5 {[%clk 0:00:14.5]} 39... Bf8 {[%clk 0:00:16.5]} 40. Nd3+ {[%clk 0:00:14.3]}
40... Kd6 {[%clk 0:00:16.5]} 41. Bf3 {[%clk 0:00:14.2]} 41... Bg7 {[%clk
0:00:14.6]} 42. Bd5 {[%clk 0:00:13.1]} 42... Bd7 {[%clk 0:00:14.2]} 43. g3
{[%clk 0:00:13.3]} 43... Be8 {[%clk 0:00:13.3]} 44. Nf2 {[%clk 0:00:09.2]} 44...
Ke5 {[%clk 0:00:12.3]} 45. Nd3+ {[%clk 0:00:08.3]} 45... Kd6 {[%clk 0:00:11.6]}
46. Be4 {[%clk 0:00:08.9]} 46... Bd7 {[%clk 0:00:10.1]} 47. Bd5 {[%clk
0:00:09.1]} 47... Be8 {[%clk 0:00:09.8]} 1/2-1/2

[Event "*** Titled Tuesday Blitz"]
[Site "Chess.com"]
[Date "2021.02.02"]
[Round "8"]
[White "L1m96"]
[Black "Vnebo"]
[Result "0-1"]
[WhiteElo "2562"]
[BlackElo "2735"]
[TimeControl "180+1"]
[EndTime "11:30:21 PST"]
[Termination "Vnebo won by checkmate"]

1. d4 {[%clk 0:02:53]} 1... d5 {[%clk 0:02:59.3]} 2. c4 {[%clk 0:02:51.6]} 2...
e6 {[%clk 0:02:59.3]} 3. Nf3 {[%clk 0:02:50.1]} 3... Nf6 {[%clk 0:02:59.3]} 4.
Nc3 {[%clk 0:02:47.3]} 4... c5 {[%clk 0:02:58.2]} 5. cxd5 {[%clk 0:02:46.8]}
5... Nxd5 {[%clk 0:02:57.7]} 6. e4 {[%clk 0:02:46.3]} 6... Nxc3 {[%clk
0:02:57.4]} 7. bxc3 {[%clk 0:02:47.2]} 7... cxd4 {[%clk 0:02:58]} 8. cxd4 {[%clk
0:02:48.1]} 8... Bb4+ {[%clk 0:02:58.2]} 9. Bd2 {[%clk 0:02:48.6]} 9... Bxd2+
{[%clk 0:02:58.8]} 10. Qxd2 {[%clk 0:02:49.3]} 10... O-O {[%clk 0:02:59.7]} 11.
Bd3 {[%clk 0:02:44]} 11... Nc6 {[%clk 0:02:58.6]} 12. Qc3 {[%clk 0:02:32.4]}
12... Bd7 {[%clk 0:02:42.1]} 13. O-O {[%clk 0:02:30.3]} 13... Rc8 {[%clk
0:02:41.2]} 14. Rfc1 {[%clk 0:02:23.5]} 14... h6 {[%clk 0:02:28.3]} 15. Qb2
{[%clk 0:02:16.9]} 15... b6 {[%clk 0:02:18.8]} 16. Ba6 {[%clk 0:02:10]} 16...
Rb8 {[%clk 0:01:53.6]} 17. h3 {[%clk 0:01:46.7]} 17... b5 {[%clk 0:01:47.7]} 18.
d5 {[%clk 0:01:11.8]} 18... exd5 {[%clk 0:01:46.3]} 19. exd5 {[%clk 0:01:12.7]}
19... Na5 {[%clk 0:01:46.3]} 20. Nd4 {[%clk 0:00:47.6]} 20... Qb6 {[%clk
0:01:35.8]} 21. a4 {[%clk 0:00:32.3]} 21... Qxa6 {[%clk 0:01:13.2]} 22. axb5
{[%clk 0:00:32]} 22... Qb6 {[%clk 0:01:10.8]} 23. Qb4 {[%clk 0:00:28.4]} 23...
Nb7 {[%clk 0:00:52.6]} 24. Ra6 {[%clk 0:00:24.6]} 24... Qd8 {[%clk 0:00:50.5]}
25. Rxa7 {[%clk 0:00:25]} 25... Qg5 {[%clk 0:00:33.4]} 26. Rc7 {[%clk
0:00:20.7]} 26... Qxd5 {[%clk 0:00:31.4]} 27. Qe7 {[%clk 0:00:12.2]} 27... Qxd4
{[%clk 0:00:18.6]} 28. Raxb7 {[%clk 0:00:11.5]} 28... Rxb7 {[%clk 0:00:17.1]}
29. Rxb7 {[%clk 0:00:12.4]} 29... Be6 {[%clk 0:00:16.9]} 30. b6 {[%clk
0:00:10.1]} 30... Rc8 {[%clk 0:00:15.5]} 31. Rc7 {[%clk 0:00:10]} 31... Rb8
{[%clk 0:00:15.8]} 32. b7 {[%clk 0:00:10.2]} 32... Kh7 {[%clk 0:00:14.6]} 33. h4
{[%clk 0:00:09.1]} 33... Qa1+ {[%clk 0:00:14.4]} 34. Kh2 {[%clk 0:00:09.2]}
34... Qe5+ {[%clk 0:00:15.3]} 35. Kg1 {[%clk 0:00:09.8]} 35... Qe1+ {[%clk
0:00:14.9]} 36. Kh2 {[%clk 0:00:09.6]} 36... Qxf2 {[%clk 0:00:15.8]} 37. Qb4
{[%clk 0:00:07]} 37... Qf5 {[%clk 0:00:14]} 38. Qd4 {[%clk 0:00:03.4]} 38... Qd5
{[%clk 0:00:12]} 39. Qb6 {[%clk 0:00:01.5]} 39... Qe5+ {[%clk 0:00:10.9]} 40.
Kg1 {[%clk 0:00:02.3]} 40... Qe1+ {[%clk 0:00:11]} 41. Kh2 {[%clk 0:00:02.9]}
41... Qxh4+ {[%clk 0:00:11.9]} 42. Kg1 {[%clk 0:00:03.7]} 42... Qe1+ {[%clk
0:00:12.3]} 43. Kh2 {[%clk 0:00:04.3]} 43... Qe5+ {[%clk 0:00:13.2]} 44. Kg1
{[%clk 0:00:04.8]} 44... Qe4 {[%clk 0:00:11.7]} 45. Qc5 {[%clk 0:00:04.1]} 45...
Bd5 {[%clk 0:00:10.6]} 46. Re7 {[%clk 0:00:03.3]} 46... Qxg2# {[%clk 0:00:09.7]}
0-1

[Event "*** Titled Tuesday Blitz"]
[Site "Chess.com"]
[Date "2021.02.02"]
[Round "8"]
[White "jens1102"]
[Black "YIYUKI"]
[Result "1-0"]
[WhiteElo "2415"]
[BlackElo "2238"]
[TimeControl "180+1"]
[EndTime "11:30:21 PST"]
[Termination "jens1102 won by checkmate"]

1. e4 {[%clk 0:03:00.9]} 1... e5 {[%clk 0:02:58.7]} 2. Nf3 {[%clk 0:02:59.5]}
2... Nc6 {[%clk 0:02:58.8]} 3. Bc4 {[%clk 0:02:59.7]} 3... Bc5 {[%clk
0:02:57.8]} 4. c3 {[%clk 0:03:00]} 4... Nf6 {[%clk 0:02:56.9]} 5. d4 {[%clk
0:03:00.6]} 5... exd4 {[%clk 0:02:57.2]} 6. cxd4 {[%clk 0:03:00.9]} 6... Bb4+
{[%clk 0:02:56.8]} 7. Bd2 {[%clk 0:02:57.8]} 7... Bxd2+ {[%clk 0:02:43.3]} 8.
Nbxd2 {[%clk 0:02:58.7]} 8... d5 {[%clk 0:02:42.4]} 9. exd5 {[%clk 0:02:59.3]}
9... Nxd5 {[%clk 0:02:42.1]} 10. O-O {[%clk 0:03:00.2]} 10... O-O {[%clk
0:02:41.6]} 11. Ne4 {[%clk 0:02:57.3]} 11... Bg4 {[%clk 0:02:38.5]} 12. Qb3
{[%clk 0:02:47.8]} 12... Nf6 {[%clk 0:02:07.3]} 13. Neg5 {[%clk 0:02:32.8]}
13... Bxf3 {[%clk 0:02:01.8]} 14. Nxf7 {[%clk 0:02:28.9]} 14... Rxf7 {[%clk
0:02:00.6]} 15. Bxf7+ {[%clk 0:02:26.9]} 15... Kf8 {[%clk 0:02:00.6]} 16. gxf3
{[%clk 0:02:27.8]} 16... Nxd4 {[%clk 0:02:00.7]} 17. Qb4+ {[%clk 0:01:50.4]}
17... Kxf7 {[%clk 0:01:58.6]} 18. Rfd1 {[%clk 0:01:50.4]} 18... Nxf3+ {[%clk
0:01:26.2]} 19. Kg2 {[%clk 0:01:50.1]} 19... Nd5 {[%clk 0:01:17.4]} 20. Qe4
{[%clk 0:01:20.3]} 20... Qg5+ {[%clk 0:01:08.3]} 21. Kh1 {[%clk 0:01:15.8]}
21... c6 {[%clk 0:00:53.3]} 22. Qxf3+ {[%clk 0:01:13.1]} 22... Kg8 {[%clk
0:00:53.9]} 23. Rg1 {[%clk 0:01:13.6]} 23... Qe5 {[%clk 0:00:52.7]} 24. Rae1
{[%clk 0:01:07.9]} 24... Qxb2 {[%clk 0:00:52]} 25. Qf5 {[%clk 0:01:02.4]} 25...
Rf8 {[%clk 0:00:50.8]} 26. Qe6+ {[%clk 0:00:59.2]} 26... Kh8 {[%clk 0:00:50.4]}
27. Qe5 {[%clk 0:00:59]} 27... Qxe5 {[%clk 0:00:43.7]} 28. Rxe5 {[%clk
0:00:59.9]} 28... h6 {[%clk 0:00:43.3]} 29. Kg2 {[%clk 0:00:54.1]} 29... Rf4
{[%clk 0:00:43]} 30. Kg3 {[%clk 0:00:46.3]} 30... Ra4 {[%clk 0:00:40.8]} 31. Re2
{[%clk 0:00:31.2]} 31... Ra3+ {[%clk 0:00:40.5]} 32. Kg4 {[%clk 0:00:29.6]}
32... Kg8 {[%clk 0:00:41.2]} 33. Rg3 {[%clk 0:00:25.9]} 33... Ra4+ {[%clk
0:00:39.9]} 34. Kf3 {[%clk 0:00:20]} 34... Kf7 {[%clk 0:00:39.8]} 35. Rd2 {[%clk
0:00:18.2]} 35... Rf4+ {[%clk 0:00:37.8]} 36. Kg2 {[%clk 0:00:18.1]} 36... Rc4
{[%clk 0:00:35.1]} 37. Rb3 {[%clk 0:00:18.1]} 37... b5 {[%clk 0:00:33.1]} 38.
Rf3+ {[%clk 0:00:15.1]} 38... Ke7 {[%clk 0:00:30.4]} 39. Re2+ {[%clk 0:00:14.8]}
39... Kd6 {[%clk 0:00:30.2]} 40. Rd2 {[%clk 0:00:12.2]} 40... a5 {[%clk
0:00:29]} 41. Rf7 {[%clk 0:00:12.4]} 41... Rg4+ {[%clk 0:00:28.6]} 42. Kf3
{[%clk 0:00:11.8]} 42... Rg6 {[%clk 0:00:29.2]} 43. Rf8 {[%clk 0:00:11.3]} 43...
a4 {[%clk 0:00:29.3]} 44. a3 {[%clk 0:00:10.7]} 44... Kc5 {[%clk 0:00:28.7]} 45.
Rc2+ {[%clk 0:00:09.7]} 45... Kd4 {[%clk 0:00:28]} 46. Rc8 {[%clk 0:00:08.6]}
46... b4 {[%clk 0:00:26]} 47. axb4 {[%clk 0:00:06.9]} 47... Nxb4 {[%clk
0:00:26.1]} 48. Rd8+ {[%clk 0:00:07.4]} 48... Ke5 {[%clk 0:00:23.8]} 49. Re2+
{[%clk 0:00:07.6]} 49... Kf5 {[%clk 0:00:22.9]} 50. Rf8+ {[%clk 0:00:07.7]}
50... Kg5 {[%clk 0:00:22.9]} 51. Re5+ {[%clk 0:00:07.7]} 51... Kh4 {[%clk
0:00:22.7]} 52. Rf4+ {[%clk 0:00:07.7]} 52... Kh3 {[%clk 0:00:21.3]} 53. Rh5#
{[%clk 0:00:08]} 1-0

[Event "*** Titled Tuesday Blitz"]
[Site "Chess.com"]
[Date "2021.02.02"]
[Round "8"]
[White "ClauSanLuis"]
[Black "Etud-otradnoe"]
[Result "1-0"]
[WhiteElo "2280"]
[BlackElo "2356"]
[TimeControl "180+1"]
[EndTime "11:30:22 PST"]
[Termination "ClauSanLuis won on time"]

1. d4 {[%clk 0:03:00.9]} 1... d5 {[%clk 0:02:59.7]} 2. Bg5 {[%clk 0:02:59.5]}
2... Bf5 {[%clk 0:02:56.8]} 3. e3 {[%clk 0:02:58.5]} 3... h6 {[%clk 0:02:56.7]}
4. Bh4 {[%clk 0:02:57.7]} 4... c5 {[%clk 0:02:56.6]} 5. Bd3 {[%clk 0:02:56.6]}
5... Bxd3 {[%clk 0:02:55]} 6. Qxd3 {[%clk 0:02:56.2]} 6... Qb6 {[%clk
0:02:54.7]} 7. b3 {[%clk 0:02:53.3]} 7... e6 {[%clk 0:02:54.3]} 8. c3 {[%clk
0:02:52.6]} 8... Nc6 {[%clk 0:02:44.3]} 9. Nf3 {[%clk 0:02:51.9]} 9... Bd6
{[%clk 0:02:35.9]} 10. Nbd2 {[%clk 0:02:51.6]} 10... Nge7 {[%clk 0:02:35.7]} 11.
O-O {[%clk 0:02:50.3]} 11... Nf5 {[%clk 0:02:35.2]} 12. Bg3 {[%clk 0:02:49]}
12... Bxg3 {[%clk 0:02:30]} 13. hxg3 {[%clk 0:02:49.9]} 13... O-O {[%clk
0:02:21.3]} 14. Ne5 {[%clk 0:02:26]} 14... Rad8 {[%clk 0:02:17.9]} 15. Ndf3
{[%clk 0:02:24]} 15... Nce7 {[%clk 0:02:13.3]} 16. Rab1 {[%clk 0:02:19.4]} 16...
Nd6 {[%clk 0:02:00.8]} 17. dxc5 {[%clk 0:02:17.9]} 17... Qxc5 {[%clk 0:01:59.3]}
18. Qd4 {[%clk 0:02:18]} 18... b6 {[%clk 0:01:51.8]} 19. Nd3 {[%clk 0:02:10.3]}
19... Qc7 {[%clk 0:01:49.5]} 20. Rbc1 {[%clk 0:02:01.7]} 20... Rc8 {[%clk
0:01:48.3]} 21. Qg4 {[%clk 0:01:59.7]} 21... b5 {[%clk 0:01:16.2]} 22. Nd4
{[%clk 0:01:56.6]} 22... a6 {[%clk 0:01:14.2]} 23. Ne5 {[%clk 0:01:43.2]} 23...
Ndf5 {[%clk 0:00:58.6]} 24. Nd3 {[%clk 0:01:29.5]} 24... Qd6 {[%clk 0:00:46.5]}
25. Rc2 {[%clk 0:01:20.6]} 25... Rc7 {[%clk 0:00:45.4]} 26. Rfc1 {[%clk
0:01:20.4]} 26... Rfc8 {[%clk 0:00:44.6]} 27. Nxf5 {[%clk 0:01:15.9]} 27... Nxf5
{[%clk 0:00:42.6]} 28. e4 {[%clk 0:01:12.5]} 28... Nd4 {[%clk 0:00:31.5]} 29. e5
{[%clk 0:01:12.4]} 29... Qb6 {[%clk 0:00:14.3]} 30. Rd2 {[%clk 0:01:01.1]} 30...
Rxc3 {[%clk 0:00:14.4]} 31. Rcd1 {[%clk 0:00:54.2]} 31... Nc6 {[%clk 0:00:12.2]}
32. Qh5 {[%clk 0:00:38.8]} 32... b4 {[%clk 0:00:10.7]} 33. Nf4 {[%clk 0:00:37]}
33... Ne7 {[%clk 0:00:10.3]} 34. g4 {[%clk 0:00:32.3]} 34... Rc1 {[%clk
0:00:09.2]} 35. g5 {[%clk 0:00:31.5]} 35... Rxd1+ {[%clk 0:00:08.4]} 36. Rxd1
{[%clk 0:00:30.3]} 36... Rc2 {[%clk 0:00:08.2]} 37. Nd3 {[%clk 0:00:24.9]} 37...
Nf5 {[%clk 0:00:06.3]} 38. gxh6 {[%clk 0:00:23.7]} 38... Nxh6 {[%clk 0:00:06.4]}
39. Qh4 {[%clk 0:00:22.3]} 39... Nf5 {[%clk 0:00:04.4]} 40. Qg4 {[%clk
0:00:20.1]} 40... Qd4 {[%clk 0:00:04.2]} 41. Qxd4 {[%clk 0:00:18.7]} 41... Nxd4
{[%clk 0:00:04.2]} 42. Nxb4 {[%clk 0:00:19.6]} 42... Ne2+ {[%clk 0:00:02.1]} 43.
Kf1 {[%clk 0:00:19.6]} 43... Nc3 {[%clk 0:00:01.4]} 44. Nxc2 {[%clk 0:00:18.2]}
1-0

[Event "*** Titled Tuesday Blitz"]
[Site "Chess.com"]
[Date "2021.02.02"]
[Round "8"]
[White "Vyacheslav_N"]
[Black "zeitnot2006"]
[Result "1-0"]
[WhiteElo "2389"]
[BlackElo "2526"]
[TimeControl "180+1"]
[EndTime "11:30:27 PST"]
[Termination "Vyacheslav_N won by resignation"]

1. e4 {[%clk 0:03:00.9]} 1... c5 {[%clk 0:02:58.7]} 2. Nf3 {[%clk 0:03:00.9]}
2... e6 {[%clk 0:02:57.1]} 3. c3 {[%clk 0:02:26.5]} 3... Qa5 {[%clk 0:02:47.4]}
4. Na3 {[%clk 0:02:19.1]} 4... d5 {[%clk 0:02:42.8]} 5. exd5 {[%clk 0:02:17.2]}
5... exd5 {[%clk 0:02:41.5]} 6. Bb5+ {[%clk 0:02:17.5]} 6... Nc6 {[%clk
0:02:38.4]} 7. Qe2+ {[%clk 0:02:18.4]} 7... Be7 {[%clk 0:02:30.9]} 8. Ne5 {[%clk
0:02:18]} 8... Qc7 {[%clk 0:02:22.1]} 9. d4 {[%clk 0:02:10.4]} 9... c4 {[%clk
0:02:16.6]} 10. Bf4 {[%clk 0:01:50.1]} 10... Qb6 {[%clk 0:02:05.9]} 11. Ba4
{[%clk 0:01:14.9]} 11... Be6 {[%clk 0:01:57.6]} 12. O-O {[%clk 0:01:01.7]} 12...
Nf6 {[%clk 0:01:54.5]} 13. Rfe1 {[%clk 0:00:58.3]} 13... O-O {[%clk 0:01:47.3]}
14. h3 {[%clk 0:00:48.5]} 14... Bxa3 {[%clk 0:01:37.3]} 15. bxa3 {[%clk
0:00:48.5]} 15... Bf5 {[%clk 0:01:37.8]} 16. Bc2 {[%clk 0:00:44.6]} 16... Bxc2
{[%clk 0:01:29.5]} 17. Qxc2 {[%clk 0:00:45.5]} 17... Rfe8 {[%clk 0:01:27.8]} 18.
a4 {[%clk 0:00:43.7]} 18... Nxe5 {[%clk 0:01:18.5]} 19. Rxe5 {[%clk 0:00:36.2]}
19... Rxe5 {[%clk 0:01:14.4]} 20. Bxe5 {[%clk 0:00:37.1]} 20... Nd7 {[%clk
0:01:11]} 21. Bg3 {[%clk 0:00:17.3]} 21... Re8 {[%clk 0:01:05.6]} 22. Rb1 {[%clk
0:00:14.9]} 22... Qc6 {[%clk 0:01:01.9]} 23. Qf5 {[%clk 0:00:13.4]} 23... g6
{[%clk 0:00:53.1]} 24. Qf3 {[%clk 0:00:10.9]} 24... a6 {[%clk 0:00:38.6]} 25. a5
{[%clk 0:00:09.7]} 25... Re4 {[%clk 0:00:38]} 26. a3 {[%clk 0:00:06.5]} 26... h5
{[%clk 0:00:38]} 27. h4 {[%clk 0:00:06.3]} 27... Re7 {[%clk 0:00:22.4]} 28. Bf4
{[%clk 0:00:06.3]} 28... Nf8 {[%clk 0:00:19.2]} 29. Bg5 {[%clk 0:00:06.1]} 29...
Rd7 {[%clk 0:00:17.6]} 30. Rb6 {[%clk 0:00:06.1]} 30... Qc7 {[%clk 0:00:15.4]}
31. Bf4 {[%clk 0:00:05.2]} 31... Qd8 {[%clk 0:00:14.3]} 32. Be5 {[%clk
0:00:05.8]} 32... Ne6 {[%clk 0:00:12.5]} 33. g3 {[%clk 0:00:04.8]} 33... Qe7
{[%clk 0:00:09.4]} 34. a4 {[%clk 0:00:04.1]} 34... Kh7 {[%clk 0:00:05.9]} 35.
Bf6 {[%clk 0:00:04.5]} 35... Qa3 {[%clk 0:00:05.3]} 36. Be5 {[%clk 0:00:05.2]}
36... Qe7 {[%clk 0:00:05.4]} 37. Kg2 {[%clk 0:00:04.7]} 37... f5 {[%clk
0:00:02.9]} 38. Qe3 {[%clk 0:00:04.2]} 38... Qf7 {[%clk 0:00:02.5]} 39. Bf4
{[%clk 0:00:03.6]} 39... Nxf4+ {[%clk 0:00:02.5]} 40. Qxf4 {[%clk 0:00:04.5]}
40... Re7 {[%clk 0:00:02.9]} 41. Qd6 {[%clk 0:00:04.1]} 41... Rd7 {[%clk
0:00:02.5]} 42. Qe5 {[%clk 0:00:04.1]} 42... Re7 {[%clk 0:00:02.5]} 43. Qf6
{[%clk 0:00:03.9]} 43... Rd7 {[%clk 0:00:02.8]} 44. Qxf7+ {[%clk 0:00:04.1]}
44... Rxf7 {[%clk 0:00:03.6]} 45. Rd6 {[%clk 0:00:04.7]} 45... Re7 {[%clk
0:00:03.9]} 46. Rxd5 {[%clk 0:00:05.3]} 46... Re2 {[%clk 0:00:04.3]} 47. Rc5
{[%clk 0:00:05.7]} 47... Kh6 {[%clk 0:00:05.2]} 48. Rxc4 {[%clk 0:00:05.9]}
48... Ra2 {[%clk 0:00:06.1]} 49. d5 {[%clk 0:00:06.2]} 49... Rd2 {[%clk
0:00:06.3]} 50. Rd4 {[%clk 0:00:06.6]} 50... Rd3 {[%clk 0:00:07]} 51. Rxd3
{[%clk 0:00:06.8]} 1-0